[Event "Early-Titled-Tuesday-Blitz-May-07-2024"]
[Site "Chess.com"]
[Date "2024.05.07"]
[Round "11"]
[White "GMthekingindian"]
[Black "Zampronha1971"]
[Result "0-1"]
[WhiteElo "2266"]
[BlackElo "2454"]
[TimeControl "180+1"]
[EndTime "10:15:09 PDT"]
[Termination "Zampronha1971 won by resignation"]

1. d4 {[%clk 0:02:59.7]} 1... Nf6 {[%clk 0:02:59.6]} 2. Nf3 {[%clk 0:02:59.5]}
2... e6 {[%clk 0:02:59.8]} 3. g3 {[%clk 0:02:59.9]} 3... b5 {[%clk 0:02:59.2]}
4. Bg2 {[%clk 0:02:59.6]} 4... Bb7 {[%clk 0:02:59.3]} 5. O-O {[%clk 0:03:00.5]}
5... c5 {[%clk 0:02:57.9]} 6. a4 {[%clk 0:02:53.2]} 6... b4 {[%clk 0:02:56.7]}
7. c4 {[%clk 0:02:53.2]} 7... Be7 {[%clk 0:02:42.5]} 8. d5 {[%clk 0:02:44.2]}
8... exd5 {[%clk 0:02:41.7]} 9. Nh4 {[%clk 0:02:44.7]} 9... O-O {[%clk
0:02:33.2]} 10. cxd5 {[%clk 0:02:42.1]} 10... d6 {[%clk 0:02:32.9]} 11. Nf5
{[%clk 0:02:34.8]} 11... Bc8 {[%clk 0:02:33.4]} 12. Qd3 {[%clk 0:02:29.1]} 12...
Bxf5 {[%clk 0:02:28.3]} 13. Qxf5 {[%clk 0:02:30]} 13... Qd7 {[%clk 0:02:26.5]}
14. Qd3 {[%clk 0:02:26.9]} 14... Re8 {[%clk 0:02:21.3]} 15. Nd2 {[%clk
0:02:26.6]} 15... Qc7 {[%clk 0:02:20.1]} 16. Nc4 {[%clk 0:02:25.9]} 16... Nbd7
{[%clk 0:02:20.6]} 17. f4 {[%clk 0:02:25.7]} 17... Nb6 {[%clk 0:02:18.1]} 18. e4
{[%clk 0:02:17.8]} 18... Nxc4 {[%clk 0:02:17.2]} 19. Qxc4 {[%clk 0:02:17.9]}
19... Nd7 {[%clk 0:02:13.2]} 20. b3 {[%clk 0:01:55.5]} 20... Rab8 {[%clk
0:02:13.2]} 21. Bb2 {[%clk 0:01:53.2]} 21... Nb6 {[%clk 0:02:10.5]} 22. Qc2
{[%clk 0:01:45.1]} 22... Rbc8 {[%clk 0:02:03.6]} 23. a5 {[%clk 0:01:33.4]} 23...
Nd7 {[%clk 0:02:02.7]} 24. Qc4 {[%clk 0:01:33.9]} 24... Bf6 {[%clk 0:01:56.6]}
25. Rf2 {[%clk 0:01:21.5]} 25... Bxb2 {[%clk 0:01:55.1]} 26. Rxb2 {[%clk
0:01:22.4]} 26... f6 {[%clk 0:01:50.4]} 27. Bh3 {[%clk 0:01:20.2]} 27... Rb8
{[%clk 0:01:49.6]} 28. Re2 {[%clk 0:01:12.6]} 28... Nf8 {[%clk 0:01:49.4]} 29.
Be6+ {[%clk 0:00:56.4]} 29... Kh8 {[%clk 0:01:41.5]} 30. g4 {[%clk 0:00:50.2]}
30... Re7 {[%clk 0:01:38.7]} 31. h4 {[%clk 0:00:34.1]} 31... Rbe8 {[%clk
0:01:38]} 32. f5 {[%clk 0:00:32.6]} 32... Nd7 {[%clk 0:01:38.4]} 33. Rc2 {[%clk
0:00:20.5]} 33... Ne5 {[%clk 0:01:36.7]} 34. Qe2 {[%clk 0:00:20.7]} 34... Rb8
{[%clk 0:01:27.8]} 35. Kh1 {[%clk 0:00:19.2]} 35... Qb7 {[%clk 0:01:17.4]} 36.
g5 {[%clk 0:00:13.5]} 36... Qb5 {[%clk 0:01:16.9]} 37. Qxb5 {[%clk 0:00:04.4]}
37... Rxb5 {[%clk 0:01:17.8]} 38. gxf6 {[%clk 0:00:01.7]} 38... gxf6 {[%clk
0:01:18.7]} 39. Rg2 {[%clk 0:00:01.6]} 39... Rg7 {[%clk 0:01:11.7]} 40. Rxg7
{[%clk 0:00:00.8]} 40... Kxg7 {[%clk 0:01:12.6]} 41. Rg1+ {[%clk 0:00:00.6]}
41... Kh6 {[%clk 0:01:13.1]} 42. Kh2 {[%clk 0:00:01.1]} 42... Rxa5 {[%clk
0:01:11.3]} 43. Rg8 {[%clk 0:00:01.4]} 43... Ra2+ {[%clk 0:01:09]} 44. Kh3
{[%clk 0:00:01]} 44... Rb2 {[%clk 0:01:08.2]} 45. Rd8 {[%clk 0:00:00.4]} 45...
Rxb3+ {[%clk 0:01:08.6]} 46. Kg2 {[%clk 0:00:00.4]} 46... Re3 {[%clk 0:01:03.9]}
47. Bg8 {[%clk 0:00:01.3]} 47... Kh5 {[%clk 0:00:58.9]} 48. Rxd6 {[%clk
0:00:01.2]} 48... Rxe4 {[%clk 0:00:51.7]} 49. Bxh7 {[%clk 0:00:01.5]} 49... b3
{[%clk 0:00:39.2]} 50. Rxf6 {[%clk 0:00:01.3]} 50... b2 {[%clk 0:00:36]} 51.
Bg6+ {[%clk 0:00:01.2]} 51... Nxg6 {[%clk 0:00:27.8]} 52. Rxg6 {[%clk
0:00:02.1]} 52... b1=Q {[%clk 0:00:26]} 53. Rg5+ {[%clk 0:00:01.8]} 53... Kh6
{[%clk 0:00:26.1]} 54. Rg6+ {[%clk 0:00:02.4]} 54... Kh7 {[%clk 0:00:26.5]} 55.
Rg3 {[%clk 0:00:01.7]} 55... Re2+ {[%clk 0:00:24.2]} 56. Kh3 {[%clk 0:00:02.6]}
56... Qh1+ {[%clk 0:00:22.3]} 57. Kg4 {[%clk 0:00:02.5]} 57... Re4+ {[%clk
0:00:21.8]} 58. Kg5 {[%clk 0:00:03.1]} 0-1

[Event "Early-Titled-Tuesday-Blitz-May-07-2024"]
[Site "Chess.com"]
[Date "2024.05.07"]
[Round "11"]
[White "Gryffindorac8"]
[Black "EvgenyBurmakin"]
[Result "1-0"]
[WhiteElo "2509"]
[BlackElo "2343"]
[TimeControl "180+1"]
[EndTime "10:15:11 PDT"]
[Termination "Gryffindorac8 won by resignation"]

1. d4 {[%clk 0:03:00.9]} 1... Nf6 {[%clk 0:02:56.9]} 2. c4 {[%clk 0:03:00.8]}
2... e6 {[%clk 0:02:57.2]} 3. Nf3 {[%clk 0:03:00.3]} 3... b6 {[%clk 0:02:56.9]}
4. g3 {[%clk 0:03:00.1]} 4... Ba6 {[%clk 0:02:56.5]} 5. Qc2 {[%clk 0:02:59.5]}
5... Bb7 {[%clk 0:02:56.6]} 6. Bg2 {[%clk 0:02:58.8]} 6... c5 {[%clk 0:02:54.5]}
7. d5 {[%clk 0:02:59]} 7... d6 {[%clk 0:02:35.3]} 8. Nc3 {[%clk 0:02:57.2]} 8...
e5 {[%clk 0:02:35.3]} 9. O-O {[%clk 0:02:54.6]} 9... Be7 {[%clk 0:02:35]} 10. e4
{[%clk 0:02:53.8]} 10... O-O {[%clk 0:02:34.7]} 11. Ne1 {[%clk 0:02:53.8]} 11...
a6 {[%clk 0:02:12]} 12. a4 {[%clk 0:02:52.9]} 12... Nbd7 {[%clk 0:02:05.7]} 13.
Nd3 {[%clk 0:02:52.1]} 13... Ne8 {[%clk 0:01:56.7]} 14. f4 {[%clk 0:02:43.2]}
14... g6 {[%clk 0:01:29.7]} 15. fxe5 {[%clk 0:02:36.1]} 15... Nxe5 {[%clk
0:01:27]} 16. Nxe5 {[%clk 0:02:35.8]} 16... dxe5 {[%clk 0:01:27.8]} 17. Bh6
{[%clk 0:02:33.5]} 17... Ng7 {[%clk 0:01:26.9]} 18. Rad1 {[%clk 0:02:26.9]}
18... Bd6 {[%clk 0:01:24.5]} 19. Rf2 {[%clk 0:02:25.7]} 19... Qe7 {[%clk
0:01:22.9]} 20. Rdf1 {[%clk 0:02:24]} 20... f6 {[%clk 0:01:14.2]} 21. Bh3 {[%clk
0:02:17.4]} 21... Bc8 {[%clk 0:01:13.5]} 22. Bxc8 {[%clk 0:02:16.5]} 22... Raxc8
{[%clk 0:01:14.4]} 23. Rf3 {[%clk 0:02:09.1]} 23... Rf7 {[%clk 0:01:13.2]} 24.
Qf2 {[%clk 0:02:05]} 24... Rcf8 {[%clk 0:01:08.9]} 25. Kg2 {[%clk 0:02:01.1]}
25... Qd8 {[%clk 0:01:02.9]} 26. b3 {[%clk 0:01:36.1]} 26... Be7 {[%clk
0:01:02.3]} 27. Qe2 {[%clk 0:01:20.5]} 27... Qd7 {[%clk 0:01:00.5]} 28. a5
{[%clk 0:01:13.1]} 28... bxa5 {[%clk 0:00:56.6]} 29. Na4 {[%clk 0:01:10.3]}
29... Rb8 {[%clk 0:00:35.9]} 30. Qd2 {[%clk 0:00:51.9]} 30... Rb4 {[%clk
0:00:33.2]} 31. Qc2 {[%clk 0:00:45.6]} 31... Qc7 {[%clk 0:00:25.6]} 32. Bd2
{[%clk 0:00:42.7]} 32... Rb8 {[%clk 0:00:24.1]} 33. Qc3 {[%clk 0:00:37.7]} 33...
Bd8 {[%clk 0:00:22.8]} 34. Be3 {[%clk 0:00:29.4]} 34... Be7 {[%clk 0:00:21.7]}
35. Qc2 {[%clk 0:00:26.6]} 35... Ne8 {[%clk 0:00:20.1]} 36. Bg1 {[%clk
0:00:19.7]} 36... Kg7 {[%clk 0:00:18.2]} 37. Rd3 {[%clk 0:00:15.6]} 37... Rb4
{[%clk 0:00:16.1]} 38. Be3 {[%clk 0:00:15.1]} 38... Bd6 {[%clk 0:00:15.2]} 39.
Qf2 {[%clk 0:00:14.9]} 39... Qc8 {[%clk 0:00:11.2]} 40. Bxc5 {[%clk 0:00:14.9]}
40... Bxc5 {[%clk 0:00:10.3]} 41. Qxc5 {[%clk 0:00:15.1]} 41... Qxc5 {[%clk
0:00:09.6]} 42. Nxc5 {[%clk 0:00:14.8]} 42... Ra7 {[%clk 0:00:09.6]} 43. Ra1
{[%clk 0:00:11.8]} 43... Nd6 {[%clk 0:00:08.9]} 44. Rxa5 {[%clk 0:00:10.1]}
44... Rc7 {[%clk 0:00:08.9]} 45. Ne6+ {[%clk 0:00:09.6]} 45... Kf7 {[%clk
0:00:07.9]} 46. Nxc7 {[%clk 0:00:09.6]} 46... Nxe4 {[%clk 0:00:08.8]} 47. Rxa6
{[%clk 0:00:08.2]} 47... Nc5 {[%clk 0:00:08]} 48. Rd1 {[%clk 0:00:04.9]} 48...
Nxa6 {[%clk 0:00:07.7]} 49. Nxa6 {[%clk 0:00:05.8]} 49... Rxb3 {[%clk
0:00:08.6]} 50. d6 {[%clk 0:00:06]} 50... Ke8 {[%clk 0:00:08.1]} 51. d7+ {[%clk
0:00:06.3]} 51... Kd8 {[%clk 0:00:08.8]} 52. Nc5 {[%clk 0:00:06.8]} 52... Rb2+
{[%clk 0:00:07.5]} 53. Kg1 {[%clk 0:00:06.9]} 1-0

[Event "Early-Titled-Tuesday-Blitz-May-07-2024"]
[Site "Chess.com"]
[Date "2024.05.07"]
[Round "11"]
[White "KuzubovYuriy"]
[Black "vaishali2001"]
[Result "1-0"]
[WhiteElo "2950"]
[BlackElo "2694"]
[TimeControl "180+1"]
[EndTime "10:15:12 PDT"]
[Termination "KuzubovYuriy won by resignation"]

1. d4 {[%clk 0:03:00.9]} 1... Nf6 {[%clk 0:02:58.4]} 2. c4 {[%clk 0:03:01.3]}
2... g6 {[%clk 0:02:58.6]} 3. Nc3 {[%clk 0:03:01.1]} 3... Bg7 {[%clk 0:02:59.3]}
4. e4 {[%clk 0:03:01.4]} 4... d6 {[%clk 0:02:59.6]} 5. Nge2 {[%clk 0:03:02]}
5... O-O {[%clk 0:02:57.6]} 6. Ng3 {[%clk 0:03:02.6]} 6... h5 {[%clk 0:02:57.5]}
7. Bg5 {[%clk 0:03:01.7]} 7... c5 {[%clk 0:02:55.2]} 8. d5 {[%clk 0:02:46.3]}
8... Nbd7 {[%clk 0:02:49.1]} 9. Bd3 {[%clk 0:02:43.4]} 9... a6 {[%clk 0:02:41]}
10. a4 {[%clk 0:02:42.6]} 10... Ne5 {[%clk 0:02:28.2]} 11. Be2 {[%clk
0:02:37.2]} 11... Nh7 {[%clk 0:02:24.9]} 12. Be3 {[%clk 0:02:34.4]} 12... e6
{[%clk 0:02:04.3]} 13. h3 {[%clk 0:02:16.5]} 13... h4 {[%clk 0:01:37.1]} 14. Nf1
{[%clk 0:02:15.2]} 14... f5 {[%clk 0:01:37.6]} 15. Qd2 {[%clk 0:01:59.2]} 15...
g5 {[%clk 0:01:32.6]} 16. f4 {[%clk 0:01:22.5]} 16... Ng6 {[%clk 0:01:14.9]} 17.
dxe6 {[%clk 0:00:55.7]} 17... Bxe6 {[%clk 0:01:07.1]} 18. exf5 {[%clk
0:00:48.7]} 18... Bxf5 {[%clk 0:01:03.3]} 19. fxg5 {[%clk 0:00:48.5]} 19... Kh8
{[%clk 0:00:50.5]} 20. Nh2 {[%clk 0:00:46.3]} 20... b5 {[%clk 0:00:22.6]} 21.
axb5 {[%clk 0:00:35.2]} 21... axb5 {[%clk 0:00:23.5]} 22. Rxa8 {[%clk
0:00:34.8]} 22... Qxa8 {[%clk 0:00:24.4]} 23. O-O {[%clk 0:00:35.1]} 23... b4
{[%clk 0:00:12.1]} 24. Nd5 {[%clk 0:00:30.6]} 24... Qa2 {[%clk 0:00:10.7]} 25.
Bd3 {[%clk 0:00:17.7]} 25... Bxd3 {[%clk 0:00:09.7]} 26. Qxd3 {[%clk 0:00:18]}
26... Rxf1+ {[%clk 0:00:07.3]} 27. Nxf1 {[%clk 0:00:14.1]} 27... Nhf8 {[%clk
0:00:07.2]} 28. b3 {[%clk 0:00:13.5]} 28... Qb2 {[%clk 0:00:04.6]} 29. Qd1
{[%clk 0:00:12.9]} 29... Kg8 {[%clk 0:00:04.1]} 30. Bf2 {[%clk 0:00:13.1]} 30...
Qe5 {[%clk 0:00:04.1]} 31. Nh2 {[%clk 0:00:12.6]} 31... Qxg5 {[%clk 0:00:04.3]}
32. Nf3 {[%clk 0:00:12.4]} 32... Qf4 {[%clk 0:00:04.8]} 33. Qe2 {[%clk
0:00:11.6]} 33... Qc1+ {[%clk 0:00:03.9]} 34. Kh2 {[%clk 0:00:11.5]} 34... Qf4+
{[%clk 0:00:04.5]} 35. Kg1 {[%clk 0:00:11.3]} 35... Qc1+ {[%clk 0:00:04.4]} 36.
Be1 {[%clk 0:00:11.5]} 36... Qh6 {[%clk 0:00:02]} 37. Bd2 {[%clk 0:00:10.9]}
37... Qh5 {[%clk 0:00:02.2]} 38. Qe4 {[%clk 0:00:10.9]} 38... Kh8 {[%clk
0:00:01.5]} 39. Nf4 {[%clk 0:00:08.8]} 39... Nxf4 {[%clk 0:00:01.6]} 40. Bxf4
{[%clk 0:00:09.5]} 40... Qg6 {[%clk 0:00:01.5]} 41. Qxg6 {[%clk 0:00:09.4]}
41... Nxg6 {[%clk 0:00:02.4]} 42. Bxd6 {[%clk 0:00:10]} 42... Nf8 {[%clk
0:00:01.8]} 43. Bxc5 {[%clk 0:00:10]} 43... Ne6 {[%clk 0:00:01.4]} 44. Bxb4
{[%clk 0:00:10.2]} 44... Bf6 {[%clk 0:00:02.3]} 45. Kf2 {[%clk 0:00:10.1]} 45...
Kg8 {[%clk 0:00:03]} 46. Ke3 {[%clk 0:00:10.4]} 46... Kf7 {[%clk 0:00:03.9]} 47.
Ke4 {[%clk 0:00:10.6]} 47... Ke8 {[%clk 0:00:04.8]} 48. Ba3 {[%clk 0:00:10]}
48... Kd7 {[%clk 0:00:04.9]} 49. b4 {[%clk 0:00:10.5]} 49... Be7 {[%clk
0:00:04.5]} 50. c5 {[%clk 0:00:09.3]} 50... Kc6 {[%clk 0:00:04.5]} 51. Nd4+
{[%clk 0:00:09.6]} 51... Nxd4 {[%clk 0:00:05]} 52. Kxd4 {[%clk 0:00:10.5]} 52...
Bf6+ {[%clk 0:00:05.9]} 53. Kc4 {[%clk 0:00:10.5]} 53... Be5 {[%clk 0:00:05.9]}
54. b5+ {[%clk 0:00:11.4]} 54... Kb7 {[%clk 0:00:06.3]} 55. c6+ {[%clk
0:00:11.7]} 55... Kb6 {[%clk 0:00:07.2]} 56. Bc5+ {[%clk 0:00:12.2]} 56... Ka5
{[%clk 0:00:07.8]} 57. Bd4 {[%clk 0:00:11.8]} 57... Bc7 {[%clk 0:00:07.8]} 58.
Bf6 {[%clk 0:00:11.2]} 1-0

[Event "Early-Titled-Tuesday-Blitz-May-07-2024"]
[Site "Chess.com"]
[Date "2024.05.07"]
[Round "11"]
[White "klercaku"]
[Black "Guldona_2007"]
[Result "0-1"]
[WhiteElo "2251"]
[BlackElo "2191"]
[TimeControl "180+1"]
[EndTime "10:15:13 PDT"]
[Termination "Guldona_2007 won by checkmate"]

1. e4 {[%clk 0:03:00.9]} 1... c5 {[%clk 0:02:59.4]} 2. Nf3 {[%clk 0:03:00.5]}
2... d6 {[%clk 0:02:58.7]} 3. d4 {[%clk 0:03:00.5]} 3... cxd4 {[%clk 0:02:59.1]}
4. Nxd4 {[%clk 0:03:01.4]} 4... Nf6 {[%clk 0:02:59.6]} 5. Nc3 {[%clk 0:03:00.9]}
5... Nc6 {[%clk 0:03:00.2]} 6. Be2 {[%clk 0:02:55.2]} 6... e5 {[%clk 0:02:59]}
7. Nb3 {[%clk 0:02:53.7]} 7... Be6 {[%clk 0:02:59.3]} 8. Be3 {[%clk 0:02:53.5]}
8... d5 {[%clk 0:02:59.2]} 9. exd5 {[%clk 0:02:53.3]} 9... Nxd5 {[%clk
0:02:59.7]} 10. Nxd5 {[%clk 0:02:53.6]} 10... Bxd5 {[%clk 0:03:00.1]} 11. O-O
{[%clk 0:02:47.5]} 11... Be7 {[%clk 0:03:00.3]} 12. Bf3 {[%clk 0:02:43.3]} 12...
Bxf3 {[%clk 0:02:57.3]} 13. Qxf3 {[%clk 0:02:42.1]} 13... Qc7 {[%clk 0:02:54]}
14. Rad1 {[%clk 0:02:34.3]} 14... O-O {[%clk 0:02:53.7]} 15. c3 {[%clk
0:02:31.3]} 15... Rad8 {[%clk 0:02:53.1]} 16. Nc5 {[%clk 0:02:27.2]} 16... Bxc5
{[%clk 0:02:47.7]} 17. Bxc5 {[%clk 0:02:26.3]} 17... Rxd1 {[%clk 0:02:45.7]} 18.
Rxd1 {[%clk 0:02:24.3]} 18... Rd8 {[%clk 0:02:46.2]} 19. Rxd8+ {[%clk
0:02:21.2]} 19... Qxd8 {[%clk 0:02:46.7]} 20. Be3 {[%clk 0:02:18.5]} 20... e4
{[%clk 0:02:43.8]} 21. Qe2 {[%clk 0:02:15.7]} 21... Qd5 {[%clk 0:02:40.2]} 22.
b3 {[%clk 0:02:08.4]} 22... Qe5 {[%clk 0:02:36.8]} 23. Qd2 {[%clk 0:02:05.9]}
23... f5 {[%clk 0:02:32]} 24. h3 {[%clk 0:02:02.7]} 24... Qe6 {[%clk 0:02:29]}
25. Bf4 {[%clk 0:01:54.7]} 25... a6 {[%clk 0:02:27.1]} 26. Bc7 {[%clk
0:01:47.1]} 26... h6 {[%clk 0:02:21.8]} 27. Bd6 {[%clk 0:01:39.5]} 27... Qd7
{[%clk 0:02:19.5]} 28. Qd5+ {[%clk 0:01:35.3]} 28... Kh7 {[%clk 0:02:19.2]} 29.
c4 {[%clk 0:01:34.5]} 29... Kg6 {[%clk 0:02:07.6]} 30. c5 {[%clk 0:01:29.7]}
30... Qf7 {[%clk 0:02:03.9]} 31. Qd2 {[%clk 0:01:20.8]} 31... Qe6 {[%clk
0:02:02.2]} 32. h4 {[%clk 0:01:18.9]} 32... Ne5 {[%clk 0:01:55.5]} 33. Qb4
{[%clk 0:01:03.3]} 33... Ng4 {[%clk 0:01:33.1]} 34. Bf4 {[%clk 0:00:26.8]} 34...
Qd5 {[%clk 0:01:28.2]} 35. Qb6+ {[%clk 0:00:23]} 35... Kh7 {[%clk 0:01:27.9]}
36. Qd6 {[%clk 0:00:21.3]} 36... Qxd6 {[%clk 0:01:12.9]} 37. Bxd6 {[%clk
0:00:20.4]} 37... Nf6 {[%clk 0:01:10.1]} 38. Kf1 {[%clk 0:00:19.9]} 38... Nd5
{[%clk 0:01:08.5]} 39. Ke1 {[%clk 0:00:14.5]} 39... a5 {[%clk 0:01:06.2]} 40.
Kd2 {[%clk 0:00:14.7]} 40... Kg8 {[%clk 0:01:05.8]} 41. f3 {[%clk 0:00:12.5]}
41... g6 {[%clk 0:01:04.5]} 42. Be5 {[%clk 0:00:07]} 42... Kf7 {[%clk
0:01:03.9]} 43. fxe4 {[%clk 0:00:04.9]} 43... fxe4 {[%clk 0:01:03.7]} 44. g4
{[%clk 0:00:05.5]} 44... h5 {[%clk 0:01:02.5]} 45. gxh5 {[%clk 0:00:04.6]} 45...
gxh5 {[%clk 0:01:02.3]} 46. Bd4 {[%clk 0:00:02.7]} 46... Ke6 {[%clk 0:01:02.3]}
47. Bf2 {[%clk 0:00:02.8]} 47... Ke5 {[%clk 0:01:01.7]} 48. a3 {[%clk
0:00:02.9]} 48... Kf4 {[%clk 0:00:58.8]} 49. Ke2 {[%clk 0:00:02.6]} 49... e3
{[%clk 0:00:57.1]} 50. Be1 {[%clk 0:00:02.9]} 50... Ke4 {[%clk 0:00:56.7]} 51.
b4 {[%clk 0:00:02.6]} 51... axb4 {[%clk 0:00:55.5]} 52. axb4 {[%clk 0:00:03.5]}
52... Nf4+ {[%clk 0:00:55.2]} 53. Kd1 {[%clk 0:00:02]} 53... Kd3 {[%clk
0:00:55.3]} 54. Bg3 {[%clk 0:00:01.6]} 54... e2+ {[%clk 0:00:54.9]} 55. Ke1
{[%clk 0:00:01.8]} 55... Ng2+ {[%clk 0:00:54.3]} 56. Kf2 {[%clk 0:00:02.2]}
56... e1=Q+ {[%clk 0:00:53.3]} 57. Kxg2 {[%clk 0:00:03.1]} 57... Qe2+ {[%clk
0:00:53.8]} 58. Kh3 {[%clk 0:00:03.2]} 58... Qf3 {[%clk 0:00:52.6]} 59. Kh2
{[%clk 0:00:03.4]} 59... Kc4 {[%clk 0:00:50.8]} 60. Kh3 {[%clk 0:00:03.8]} 60...
Kxb4 {[%clk 0:00:50.3]} 61. Kh2 {[%clk 0:00:03.2]} 61... Kxc5 {[%clk 0:00:50.5]}
62. Kh3 {[%clk 0:00:02.7]} 62... Qg4+ {[%clk 0:00:50.5]} 63. Kh2 {[%clk
0:00:03]} 63... Kd5 {[%clk 0:00:50.9]} 64. Kh1 {[%clk 0:00:01.5]} 64... Ke4
{[%clk 0:00:50.2]} 65. Kh2 {[%clk 0:00:02]} 65... Kf3 {[%clk 0:00:50.4]} 66. Be1
{[%clk 0:00:02.9]} 66... Qg2# {[%clk 0:00:49.7]} 0-1

[Event "Early-Titled-Tuesday-Blitz-May-07-2024"]
[Site "Chess.com"]
[Date "2024.05.07"]
[Round "11"]
[White "tptagain"]
[Black "Rodalquilar"]
[Result "0-1"]
[WhiteElo "2913"]
[BlackElo "2768"]
[TimeControl "180+1"]
[EndTime "10:15:16 PDT"]
[Termination "Rodalquilar won on time"]

1. e4 {[%clk 0:03:00.9]} 1... d5 {[%clk 0:03:00.2]} 2. exd5 {[%clk 0:02:58.7]}
2... Qxd5 {[%clk 0:03:01.1]} 3. Nc3 {[%clk 0:02:58.3]} 3... Qa5 {[%clk
0:03:01.2]} 4. Bc4 {[%clk 0:02:56]} 4... Nf6 {[%clk 0:03:01]} 5. d3 {[%clk
0:02:52.4]} 5... Bg4 {[%clk 0:03:00.5]} 6. f3 {[%clk 0:02:50.1]} 6... Bd7 {[%clk
0:03:00.6]} 7. Qe2 {[%clk 0:02:46.6]} 7... e6 {[%clk 0:03:00.1]} 8. Bd2 {[%clk
0:02:46.4]} 8... Qb6 {[%clk 0:02:58.7]} 9. O-O-O {[%clk 0:02:44.1]} 9... Nc6
{[%clk 0:02:58.1]} 10. g4 {[%clk 0:02:42.8]} 10... Nd4 {[%clk 0:02:50.9]} 11.
Qg2 {[%clk 0:02:42.6]} 11... Bc6 {[%clk 0:02:43.9]} 12. g5 {[%clk 0:02:41.8]}
12... Nd7 {[%clk 0:02:44.4]} 13. Bb3 {[%clk 0:02:06.8]} 13... a5 {[%clk
0:02:40.6]} 14. Ba4 {[%clk 0:02:01]} 14... Bxa4 {[%clk 0:02:11.3]} 15. Nxa4
{[%clk 0:02:01.9]} 15... Qc6 {[%clk 0:02:11.5]} 16. Nc3 {[%clk 0:02:02.6]} 16...
b5 {[%clk 0:02:11.7]} 17. Be3 {[%clk 0:02:01.8]} 17... Nf5 {[%clk 0:02:03.8]}
18. Bf2 {[%clk 0:02:01.2]} 18... b4 {[%clk 0:01:59]} 19. Ne4 {[%clk 0:02:01.2]}
19... b3 {[%clk 0:01:32]} 20. axb3 {[%clk 0:01:54.7]} 20... a4 {[%clk
0:01:32.5]} 21. f4 {[%clk 0:01:51.1]} 21... Kd8 {[%clk 0:01:21.1]} 22. Qf3
{[%clk 0:01:28.7]} 22... axb3 {[%clk 0:01:10.4]} 23. Nc3 {[%clk 0:01:28.8]}
23... Ra1+ {[%clk 0:01:06.7]} 24. Kd2 {[%clk 0:01:29.2]} 24... Rxd1+ {[%clk
0:01:01.2]} 25. Kxd1 {[%clk 0:01:30.1]} 25... Qa6 {[%clk 0:00:47]} 26. cxb3
{[%clk 0:01:29.1]} 26... Bc5 {[%clk 0:00:46.5]} 27. Nge2 {[%clk 0:01:20.5]}
27... Bxf2 {[%clk 0:00:42.1]} 28. Qxf2 {[%clk 0:01:20.9]} 28... Qxd3+ {[%clk
0:00:42.4]} 29. Kc1 {[%clk 0:01:20.9]} 29... Ne3 {[%clk 0:00:29.8]} 30. Nd4
{[%clk 0:00:54.3]} 30... Qxd4 {[%clk 0:00:22.2]} 31. Re1 {[%clk 0:00:54.2]}
31... Nf5 {[%clk 0:00:18.4]} 32. Qf3 {[%clk 0:00:54.6]} 32... Ke7 {[%clk
0:00:12.2]} 33. Nd5+ {[%clk 0:00:47.9]} 33... Kf8 {[%clk 0:00:12.6]} 34. Rd1
{[%clk 0:00:41]} 34... Qc5+ {[%clk 0:00:11.3]} 35. Nc3 {[%clk 0:00:41.3]} 35...
Ke7 {[%clk 0:00:10]} 36. Kb1 {[%clk 0:00:35.9]} 36... Rb8 {[%clk 0:00:10.1]} 37.
Qd3 {[%clk 0:00:35.7]} 37... Qc6 {[%clk 0:00:07.4]} 38. Re1 {[%clk 0:00:33.3]}
38... g6 {[%clk 0:00:05.9]} 39. b4 {[%clk 0:00:25.1]} 39... Nb6 {[%clk
0:00:05.3]} 40. Ne4 {[%clk 0:00:20.7]} 40... Nd5 {[%clk 0:00:04.4]} 41. Qa3
{[%clk 0:00:15.8]} 41... Qb5 {[%clk 0:00:04.2]} 42. Nc3 {[%clk 0:00:13.3]} 42...
Nxc3+ {[%clk 0:00:04.2]} 43. Qxc3 {[%clk 0:00:13.9]} 43... Qxb4 {[%clk 0:00:04]}
44. Qf6+ {[%clk 0:00:12.6]} 44... Kd7 {[%clk 0:00:02.6]} 45. Rd1+ {[%clk
0:00:12.5]} 45... Nd6 {[%clk 0:00:02.9]} 46. Qxf7+ {[%clk 0:00:11.7]} 46... Kc6
{[%clk 0:00:03.5]} 47. Qf6 {[%clk 0:00:11.4]} 47... Qe4+ {[%clk 0:00:03.2]} 48.
Kc1 {[%clk 0:00:12]} 48... Qc4+ {[%clk 0:00:03.5]} 49. Kb1 {[%clk 0:00:12.1]}
49... Qe4+ {[%clk 0:00:03.5]} 50. Kc1 {[%clk 0:00:12.7]} 50... Rb5 {[%clk
0:00:03.9]} 51. b3 {[%clk 0:00:02]} 51... Rc5+ {[%clk 0:00:04.5]} 52. Kb2 {[%clk
0:00:01.6]} 52... Qe2+ {[%clk 0:00:04.9]} 53. Ka3 {[%clk 0:00:01.4]} 53... Qxd1
{[%clk 0:00:05]} 0-1